[Event "Titled Tuesday Blitz August 1 Late 2023"]
[White "Kushko, Dmitriy"]
[Black "Sivakumar, Shaaketh"]
[WhiteFideId "14162261"]
[BlackFideId "30940176"]
[WhiteElo "2768"]
[BlackElo "2490"]
[Result "1-0"]
[Round "3"]
[TimeControl "180+1"]
[Date "2023.08.01"]
[WhiteClock "0:00:13"]
[BlackClock "0:00:58"]
[Board "57"]

1. Nf3 {[%clk 0:03:00]}  Nf6 {[%clk 0:02:59]} 2. g3 {[%clk 0:03:01]}  b5 {[%clk 0:02:58]} 3. Na3 {[%clk 0:03:00]}  b4 {[%clk 0:02:56]} 4. Nc4 {[%clk 0:03:00]}  Bb7 {[%clk 0:02:55]} 5. a3 {[%clk 0:03:00]}  a5 {[%clk 0:02:51]} 6. Bg2 {[%clk 0:02:58]}  d5 {[%clk 0:02:50]} 7. Nce5 {[%clk 0:02:57]}  e6 {[%clk 0:02:50]} 8. O-O {[%clk 0:02:56]}  Bd6 {[%clk 0:02:49]} 9. axb4 {[%clk 0:02:51]}  axb4 {[%clk 0:02:49]} 10. Rxa8 {[%clk 0:02:51]}  Bxa8 {[%clk 0:02:50]} 11. d4 {[%clk 0:02:49]}  O-O {[%clk 0:02:49]} 12. c4 {[%clk 0:02:45]}  dxc4 {[%clk 0:02:47]} 13. Nxc4 {[%clk 0:02:44]}  Be7 {[%clk 0:02:47]} 14. Bf4 {[%clk 0:02:23]}  Nbd7 {[%clk 0:02:41]} 15. Nfe5 {[%clk 0:02:11]}  Bxg2 {[%clk 0:02:40]} 16. Kxg2 {[%clk 0:02:11]}  Qa8+ {[%clk 0:02:41]} 17. f3 {[%clk 0:02:11]}  Nxe5 {[%clk 0:02:39]} 18. Bxe5 {[%clk 0:02:10]}  Rc8 {[%clk 0:02:25]} 19. e4 {[%clk 0:01:58]}  c5 {[%clk 0:02:21]} 20. Nb6 {[%clk 0:01:58]}  Qc6 {[%clk 0:02:16]} 21. Nxc8 {[%clk 0:01:58]}  Qxc8 {[%clk 0:02:17]} 22. Qc2 {[%clk 0:01:36]}  Nd7 {[%clk 0:02:16]} 23. Bf4 {[%clk 0:01:19]}  c4 {[%clk 0:02:15]} 24. d5 {[%clk 0:01:16]}  exd5 {[%clk 0:02:10]} 25. exd5 {[%clk 0:01:16]}  Qc5 {[%clk 0:02:10]} 26. d6 {[%clk 0:01:11]}  Bf8 {[%clk 0:02:08]} 27. Rd1 {[%clk 0:01:03]}  Qc6 {[%clk 0:01:58]} 28. Qe4 {[%clk 0:01:01]}  Qa4 {[%clk 0:01:57]} 29. Rc1 {[%clk 0:00:54]}  Nb6 {[%clk 0:01:50]} 30. Qd4 {[%clk 0:00:50]}  Qb5 {[%clk 0:01:37]} 31. Be3 {[%clk 0:00:35]}  Nd5 {[%clk 0:01:34]} 32. Bf2 {[%clk 0:00:34]}  c3 {[%clk 0:01:31]} 33. bxc3 {[%clk 0:00:34]}  bxc3 {[%clk 0:01:29]} 34. d7 {[%clk 0:00:19]}  Qxd7 {[%clk 0:01:28]} 35. Rxc3 {[%clk 0:00:18]}  Qe6 {[%clk 0:01:25]} 36. Rd3 {[%clk 0:00:18]}  Ne7 {[%clk 0:01:25]} 37. Re3 {[%clk 0:00:17]}  Qg6 {[%clk 0:01:23]} 38. Qd8 {[%clk 0:00:15]}  Qf6 {[%clk 0:01:18]} 39. Re2 {[%clk 0:00:14]}  Nd5 {[%clk 0:00:58]} 40. Qxd5 {[%clk 0:00:13]} 1-0


[Site "https://www.chess.com"]

[Event "Titled Tuesday Blitz August 1 Late 2023"]
[White "Matinian, Nikita"]
[Black "Willy, Stephen"]
[WhiteFideId "24129100"]
[BlackFideId "30981468"]
[WhiteElo "2726"]
[BlackElo "2485"]
[Result "1-0"]
[Round "3"]
[TimeControl "180+1"]
[Date "2023.08.01"]
[WhiteClock "0:01:41"]
[BlackClock "0:00:20"]
[Board "60"]

1. e4 {[%clk 0:03:00]}  c5 {[%clk 0:02:56]} 2. Nf3 {[%clk 0:03:01]}  a6 {[%clk 0:02:56]} 3. c3 {[%clk 0:03:01]}  g6 {[%clk 0:02:54]} 4. d4 {[%clk 0:03:00]}  cxd4 {[%clk 0:02:55]} 5. cxd4 {[%clk 0:03:01]}  d5 {[%clk 0:02:55]} 6. e5 {[%clk 0:03:01]}  Bg4 {[%clk 0:02:55]} 7. Nbd2 {[%clk 0:02:53]}  Nc6 {[%clk 0:02:34]} 8. h3 {[%clk 0:02:53]}  Bd7 {[%clk 0:02:30]} 9. Bd3 {[%clk 0:02:46]}  Nb4 {[%clk 0:02:29]} 10. Bb1 {[%clk 0:02:44]}  Bb5 {[%clk 0:02:25]} 11. Nb3 {[%clk 0:02:38]}  e6 {[%clk 0:02:18]} 12. a3 {[%clk 0:02:38]}  Nc6 {[%clk 0:02:17]} 13. Bg5 {[%clk 0:02:26]}  Be7 {[%clk 0:02:13]} 14. Bxe7 {[%clk 0:02:25]}  Ngxe7 {[%clk 0:02:13]} 15. Nc5 {[%clk 0:02:22]}  Qa5+ {[%clk 0:02:04]} 16. Qd2 {[%clk 0:02:18]}  Qxd2+ {[%clk 0:02:02]} 17. Kxd2 {[%clk 0:02:19]}  Na5 {[%clk 0:02:01]} 18. a4 {[%clk 0:02:11]}  Bc6 {[%clk 0:01:54]} 19. Bd3 {[%clk 0:02:03]}  b6 {[%clk 0:01:22]} 20. Nxa6 {[%clk 0:02:03]}  Nb3+ {[%clk 0:01:21]} 21. Kc3 {[%clk 0:02:03]}  Nxa1 {[%clk 0:01:22]} 22. Nc7+ {[%clk 0:02:03]}  Kd7 {[%clk 0:01:22]} 23. Nxa8 {[%clk 0:02:04]}  Rxa8 {[%clk 0:01:21]} 24. Rxa1 {[%clk 0:02:04]}  Rxa4 {[%clk 0:01:22]} 25. Rxa4 {[%clk 0:02:04]}  Bxa4 {[%clk 0:01:22]} 26. Ng5 {[%clk 0:02:03]}  Ke8 {[%clk 0:01:18]} 27. Nxh7 {[%clk 0:02:02]}  Bc6 {[%clk 0:01:12]} 28. Nf6+ {[%clk 0:02:02]}  Kf8 {[%clk 0:01:11]} 29. g4 {[%clk 0:02:03]}  Kg7 {[%clk 0:01:04]} 30. f4 {[%clk 0:02:03]}  Ng8 {[%clk 0:00:41]} 31. Nxg8 {[%clk 0:02:02]}  Kxg8 {[%clk 0:00:42]} 32. h4 {[%clk 0:02:00]}  Kg7 {[%clk 0:00:41]} 33. Kb4 {[%clk 0:02:00]}  Kg8 {[%clk 0:00:40]} 34. f5 {[%clk 0:01:49]}  Kg7 {[%clk 0:00:29]} 35. fxe6 {[%clk 0:01:49]}  fxe6 {[%clk 0:00:29]} 36. Bb5 {[%clk 0:01:41]}  Bb7 {[%clk 0:00:20]} 37. Bd7 {[%clk 0:01:41]} 1-0


[Site "https://www.chess.com"]

[Event "Titled Tuesday Blitz August 1 Late 2023"]
[White "Delorme, Axel"]
[Black "Alex_Sahakyan2006"]
[WhiteFideId "632023"]
[WhiteElo "2482"]
[BlackElo "2721"]
[Result "0-1"]
[Round "3"]
[TimeControl "180+1"]
[Date "2023.08.01"]
[WhiteClock "0:00:02"]
[BlackClock "0:00:07"]
[Board "61"]

1. e4 {[%clk 0:02:56]}  e6 {[%clk 0:02:58]} 2. d4 {[%clk 0:02:55]}  d5 {[%clk 0:02:58]} 3. Nc3 {[%clk 0:02:56]}  Nc6 {[%clk 0:02:58]} 4. e5 {[%clk 0:02:54]}  f6 {[%clk 0:02:55]} 5. Nf3 {[%clk 0:02:23]}  Nge7 {[%clk 0:02:50]} 6. exf6 {[%clk 0:02:19]}  gxf6 {[%clk 0:02:48]} 7. Bd3 {[%clk 0:02:20]}  a6 {[%clk 0:02:33]} 8. Bf4 {[%clk 0:02:14]}  Ng6 {[%clk 0:02:31]} 9. Bg3 {[%clk 0:02:14]}  Bd6 {[%clk 0:02:32]} 10. Qe2 {[%clk 0:02:08]}  Nb4 {[%clk 0:02:26]} 11. O-O-O {[%clk 0:01:59]}  Nxd3+ {[%clk 0:02:24]} 12. Rxd3 {[%clk 0:01:58]}  Nf4 {[%clk 0:02:18]} 13. Bxf4 {[%clk 0:01:58]}  Bxf4+ {[%clk 0:02:19]} 14. Kb1 {[%clk 0:01:59]}  Kf8 {[%clk 0:02:00]} 15. g3 {[%clk 0:01:59]}  Bd6 {[%clk 0:02:00]} 16. Re1 {[%clk 0:01:51]}  Rg8 {[%clk 0:01:56]} 17. Re3 {[%clk 0:01:48]}  Qd7 {[%clk 0:01:38]} 18. h4 {[%clk 0:01:42]}  Qf7 {[%clk 0:01:34]} 19. Na4 {[%clk 0:01:10]}  b6 {[%clk 0:01:31]} 20. c4 {[%clk 0:01:10]}  dxc4 {[%clk 0:01:25]} 21. Qxc4 {[%clk 0:01:05]}  Bb7 {[%clk 0:00:55]} 22. Nc3 {[%clk 0:00:53]}  b5 {[%clk 0:00:52]} 23. Qxe6 {[%clk 0:00:51]}  Qxe6 {[%clk 0:00:49]} 24. Rxe6 {[%clk 0:00:52]}  Kf7 {[%clk 0:00:50]} 25. R6e3 {[%clk 0:00:49]}  Rae8 {[%clk 0:00:44]} 26. Ne4 {[%clk 0:00:47]}  Bb4 {[%clk 0:00:44]} 27. Ned2 {[%clk 0:00:33]}  Bxf3 {[%clk 0:00:31]} 28. Rxe8 {[%clk 0:00:30]}  Rxe8 {[%clk 0:00:30]} 29. Rxe8 {[%clk 0:00:31]}  Bxd2 {[%clk 0:00:31]} 30. Rc8 {[%clk 0:00:22]}  Be4+ {[%clk 0:00:29]} 31. Ka1 {[%clk 0:00:22]}  c6 {[%clk 0:00:19]} 32. Rc7+ {[%clk 0:00:21]}  Kg6 {[%clk 0:00:19]} 33. a3 {[%clk 0:00:20]}  Bd5 {[%clk 0:00:18]} 34. Re7 {[%clk 0:00:19]}  a5 {[%clk 0:00:14]} 35. Kb1 {[%clk 0:00:19]}  a4 {[%clk 0:00:13]} 36. Kc2 {[%clk 0:00:19]}  Bh6 {[%clk 0:00:14]} 37. Kc3 {[%clk 0:00:18]}  Bf8 {[%clk 0:00:10]} 38. Rc7 {[%clk 0:00:16]}  f5 {[%clk 0:00:10]} 39. Kd3 {[%clk 0:00:14]}  Bg7 {[%clk 0:00:07]} 40. Kc3 {[%clk 0:00:13]}  Bf6 {[%clk 0:00:06]} 41. Kd3 {[%clk 0:00:13]}  Be4+ {[%clk 0:00:06]} 42. Kc3 {[%clk 0:00:13]}  f4 {[%clk 0:00:06]} 43. gxf4 {[%clk 0:00:12]}  Bxh4 {[%clk 0:00:05]} 44. Kb4 {[%clk 0:00:11]}  Bf6 {[%clk 0:00:04]} 45. Kc5 {[%clk 0:00:11]}  h5 {[%clk 0:00:05]} 46. Rxc6 {[%clk 0:00:03]}  Bxc6 {[%clk 0:00:05]} 47. Kxc6 {[%clk 0:00:04]}  Bxd4 {[%clk 0:00:05]} 48. Kxb5 {[%clk 0:00:04]}  Bxb2 {[%clk 0:00:06]} 49. Kxa4 {[%clk 0:00:02]}  h4 {[%clk 0:00:07]} 0-1


[Site "https://www.chess.com"]

[Event "Titled Tuesday Blitz August 1 Late 2023"]
[White "Salazar Farias, Luis German"]
[Black "Krishna C R G"]
[WhiteFideId "3902170"]
[BlackFideId "5018625"]
[WhiteElo "2482"]
[BlackElo "2706"]
[Result "0-1"]
[Round "3"]
[TimeControl "180+1"]
[Date "2023.08.01"]
[WhiteClock "0:00:00"]
[BlackClock "0:01:10"]
[Board "63"]

1. d4 {[%clk 0:03:00]}  f5 {[%clk 0:02:59]} 2. Bf4 {[%clk 0:02:59]}  Nf6 {[%clk 0:02:59]} 3. e3 {[%clk 0:02:53]}  d6 {[%clk 0:02:58]} 4. Nc3 {[%clk 0:02:48]}  g6 {[%clk 0:02:58]} 5. h4 {[%clk 0:02:47]}  Bg7 {[%clk 0:02:58]} 6. h5 {[%clk 0:02:41]}  Nxh5 {[%clk 0:02:57]} 7. Rxh5 {[%clk 0:02:39]}  gxh5 {[%clk 0:02:58]} 8. Qxh5+ {[%clk 0:02:38]}  Kf8 {[%clk 0:02:59]} 9. Bh6 {[%clk 0:01:40]}  Rg8 {[%clk 0:02:49]} 10. Bc4 {[%clk 0:01:38]}  e6 {[%clk 0:02:49]} 11. Nf3 {[%clk 0:01:31]}  Qf6 {[%clk 0:02:45]} 12. Bf4 {[%clk 0:01:06]}  Qg6 {[%clk 0:02:43]} 13. Qh3 {[%clk 0:00:57]}  Nc6 {[%clk 0:02:39]} 14. Nb5 {[%clk 0:00:54]}  Qf7 {[%clk 0:01:57]} 15. Ng5 {[%clk 0:00:52]}  Qe7 {[%clk 0:01:56]} 16. Nxh7+ {[%clk 0:00:44]}  Ke8 {[%clk 0:01:56]} 17. Qh5+ {[%clk 0:00:38]}  Kd7 {[%clk 0:01:55]} 18. Ng5 {[%clk 0:00:32]}  Nd8 {[%clk 0:01:50]} 19. O-O-O {[%clk 0:00:16]}  a6 {[%clk 0:01:45]} 20. Nc3 {[%clk 0:00:13]}  b5 {[%clk 0:01:44]} 21. Bb3 {[%clk 0:00:11]}  Bb7 {[%clk 0:01:44]} 22. d5 {[%clk 0:00:11]}  e5 {[%clk 0:01:43]} 23. Bg3 {[%clk 0:00:08]}  b4 {[%clk 0:01:36]} 24. Ne2 {[%clk 0:00:06]}  a5 {[%clk 0:01:33]} 25. Bh4 {[%clk 0:00:03]}  Bf6 {[%clk 0:01:31]} 26. Nh7 {[%clk 0:00:02]}  Bxh4 {[%clk 0:01:30]} 27. Qxf5+ {[%clk 0:00:03]}  Ke8 {[%clk 0:01:29]} 28. Rh1 {[%clk 0:00:03]}  Bc8 {[%clk 0:01:23]} 29. Qh5+ {[%clk 0:00:03]}  Nf7 {[%clk 0:01:20]} 30. Rxh4 {[%clk 0:00:03]}  Bd7 {[%clk 0:01:16]} 31. Ng3 {[%clk 0:00:03]}  Kd8 {[%clk 0:01:11]} 32. Ne4 {[%clk 0:00:00]}  Kc8 {[%clk 0:01:10]} 0-1


[Site "https://www.chess.com"]

[Event "Titled Tuesday Blitz August 1 Late 2023"]
[White "Toncheva, Nadya"]
[Black "nickVet"]
[WhiteFideId "2924056"]
[WhiteElo "2479"]
[BlackElo "2694"]
[Result "0-1"]
[Round "3"]
[TimeControl "180+1"]
[Date "2023.08.01"]
[WhiteClock "0:00:03"]
[BlackClock "0:00:10"]
[Board "65"]

1. e4 {[%clk 0:03:00]}  e6 {[%clk 0:03:00]} 2. d4 {[%clk 0:02:57]}  d5 {[%clk 0:03:01]} 3. Nd2 {[%clk 0:02:57]}  c5 {[%clk 0:03:01]} 4. exd5 {[%clk 0:02:56]}  Qxd5 {[%clk 0:03:01]} 5. Ngf3 {[%clk 0:02:57]}  cxd4 {[%clk 0:03:00]} 6. Bc4 {[%clk 0:02:57]}  Qd7 {[%clk 0:02:59]} 7. O-O {[%clk 0:02:58]}  Nc6 {[%clk 0:02:59]} 8. Nb3 {[%clk 0:02:58]}  Nf6 {[%clk 0:02:59]} 9. Nbxd4 {[%clk 0:02:58]}  Nxd4 {[%clk 0:03:00]} 10. Qxd4 {[%clk 0:02:59]}  Qxd4 {[%clk 0:02:59]} 11. Nxd4 {[%clk 0:03:00]}  a6 {[%clk 0:02:58]} 12. Bf4 {[%clk 0:03:00]}  Bc5 {[%clk 0:02:52]} 13. Nb3 {[%clk 0:02:58]}  Be7 {[%clk 0:02:50]} 14. a4 {[%clk 0:02:56]}  Bd7 {[%clk 0:02:49]} 15. a5 {[%clk 0:02:55]}  O-O-O {[%clk 0:02:45]} 16. Be2 {[%clk 0:02:45]}  Nd5 {[%clk 0:02:41]} 17. Be5 {[%clk 0:02:41]}  f6 {[%clk 0:02:41]} 18. Bg3 {[%clk 0:02:41]}  e5 {[%clk 0:02:41]} 19. Bf3 {[%clk 0:02:37]}  Bc6 {[%clk 0:02:41]} 20. c3 {[%clk 0:02:29]}  Rhe8 {[%clk 0:02:27]} 21. Rfd1 {[%clk 0:02:22]}  Bf8 {[%clk 0:02:25]} 22. Nd2 {[%clk 0:01:57]}  f5 {[%clk 0:02:18]} 23. Bh4 {[%clk 0:01:53]}  Rd7 {[%clk 0:02:12]} 24. Nc4 {[%clk 0:01:53]}  e4 {[%clk 0:02:12]} 25. Bh5 {[%clk 0:01:39]}  g6 {[%clk 0:02:11]} 26. Be2 {[%clk 0:01:39]}  h6 {[%clk 0:02:11]} 27. Rxd5 {[%clk 0:01:24]}  Rxd5 {[%clk 0:01:56]} 28. Nb6+ {[%clk 0:01:24]}  Kc7 {[%clk 0:01:56]} 29. Nxd5+ {[%clk 0:01:19]}  Bxd5 {[%clk 0:01:57]} 30. Rd1 {[%clk 0:01:16]}  Kc6 {[%clk 0:01:55]} 31. Bf6 {[%clk 0:01:13]}  Re6 {[%clk 0:01:47]} 32. Bh8 {[%clk 0:01:05]}  Bb3 {[%clk 0:01:41]} 33. Rd8 {[%clk 0:01:02]}  Be7 {[%clk 0:01:41]} 34. Rc8+ {[%clk 0:00:54]}  Kd7 {[%clk 0:01:41]} 35. Ra8 {[%clk 0:00:41]}  Rd6 {[%clk 0:01:29]} 36. Bd4 {[%clk 0:00:40]}  Bd8 {[%clk 0:00:59]} 37. Ra7 {[%clk 0:00:31]}  Kc6 {[%clk 0:00:58]} 38. Bxa6 {[%clk 0:00:16]}  bxa6 {[%clk 0:00:54]} 39. Rxa6+ {[%clk 0:00:17]}  Kd5 {[%clk 0:00:45]} 40. Rxd6+ {[%clk 0:00:17]}  Kxd6 {[%clk 0:00:45]} 41. a6 {[%clk 0:00:17]}  Kc6 {[%clk 0:00:43]} 42. a7 {[%clk 0:00:17]}  Kb7 {[%clk 0:00:42]} 43. Kf1 {[%clk 0:00:16]}  Bd5 {[%clk 0:00:41]} 44. Ke2 {[%clk 0:00:16]}  Bb6 {[%clk 0:00:42]} 45. Ke3 {[%clk 0:00:11]}  Bxa7 {[%clk 0:00:41]} 46. Bxa7 {[%clk 0:00:09]}  Kxa7 {[%clk 0:00:42]} 47. g3 {[%clk 0:00:09]}  Kb6 {[%clk 0:00:42]} 48. Kd4 {[%clk 0:00:10]}  Bb7 {[%clk 0:00:40]} 49. c4 {[%clk 0:00:10]}  Kc6 {[%clk 0:00:26]} 50. b4 {[%clk 0:00:11]}  Kd6 {[%clk 0:00:26]} 51. h4 {[%clk 0:00:09]}  g5 {[%clk 0:00:26]} 52. hxg5 {[%clk 0:00:09]}  hxg5 {[%clk 0:00:27]} 53. c5+ {[%clk 0:00:08]}  Kc6 {[%clk 0:00:22]} 54. Ke5 {[%clk 0:00:08]}  Bc8 {[%clk 0:00:22]} 55. g4 {[%clk 0:00:08]}  f4 {[%clk 0:00:18]} 56. Kxe4 {[%clk 0:00:08]}  Bxg4 {[%clk 0:00:18]} 57. Ke5 {[%clk 0:00:09]}  Bc8 {[%clk 0:00:12]} 58. Ke4 {[%clk 0:00:05]}  Kb5 {[%clk 0:00:10]} 59. f3 {[%clk 0:00:03]} 0-1


[Site "https://www.chess.com"]

[Event "Titled Tuesday Blitz August 1 Late 2023"]
[White "Morefield, Jason"]
[Black "Tifferet, Shaked"]
[WhiteFideId "30920825"]
[BlackFideId "2811529"]
[WhiteElo "2672"]
[BlackElo "2477"]
[Result "1-0"]
[Round "3"]
[TimeControl "180+1"]
[Date "2023.08.01"]
[WhiteClock "0:00:09"]
[BlackClock "0:00:00"]
[Board "68"]

1. e4 {[%clk 0:03:00]}  c5 {[%clk 0:03:00]} 2. Nf3 {[%clk 0:03:01]}  e6 {[%clk 0:03:00]} 3. d4 {[%clk 0:03:01]}  cxd4 {[%clk 0:03:01]} 4. Nxd4 {[%clk 0:03:02]}  Nc6 {[%clk 0:03:02]} 5. Nc3 {[%clk 0:03:02]}  a6 {[%clk 0:03:02]} 6. a3 {[%clk 0:03:02]}  Nxd4 {[%clk 0:03:01]} 7. Qxd4 {[%clk 0:03:02]}  Ne7 {[%clk 0:03:02]} 8. Bf4 {[%clk 0:02:47]}  Nc6 {[%clk 0:03:02]} 9. Qd2 {[%clk 0:02:47]}  d6 {[%clk 0:02:50]} 10. O-O-O {[%clk 0:02:45]}  e5 {[%clk 0:02:50]} 11. Be3 {[%clk 0:02:42]}  Be6 {[%clk 0:02:50]} 12. f4 {[%clk 0:02:41]}  exf4 {[%clk 0:02:47]} 13. Bxf4 {[%clk 0:02:41]}  Ne5 {[%clk 0:02:47]} 14. Nd5 {[%clk 0:02:23]}  Bxd5 {[%clk 0:02:07]} 15. Qxd5 {[%clk 0:02:24]}  Qc7 {[%clk 0:02:06]} 16. Bxe5 {[%clk 0:01:53]}  dxe5 {[%clk 0:02:07]} 17. Bc4 {[%clk 0:01:53]}  Bc5 {[%clk 0:01:45]} 18. Rhf1 {[%clk 0:01:41]}  O-O {[%clk 0:01:43]} 19. Qd3 {[%clk 0:01:24]}  g6 {[%clk 0:01:23]} 20. g4 {[%clk 0:01:06]}  Rac8 {[%clk 0:01:15]} 21. Bb3 {[%clk 0:00:57]}  Bd4 {[%clk 0:01:09]} 22. Kb1 {[%clk 0:00:49]}  Qb6 {[%clk 0:01:03]} 23. g5 {[%clk 0:00:43]}  Qd8 {[%clk 0:00:55]} 24. c3 {[%clk 0:00:33]}  Bc5 {[%clk 0:00:41]} 25. Qxd8 {[%clk 0:00:32]}  Rcxd8 {[%clk 0:00:41]} 26. Rxd8 {[%clk 0:00:33]}  Rxd8 {[%clk 0:00:41]} 27. Rxf7 {[%clk 0:00:34]}  Kh8 {[%clk 0:00:35]} 28. Rxb7 {[%clk 0:00:32]}  Be3 {[%clk 0:00:32]} 29. Bd5 {[%clk 0:00:19]}  Bxg5 {[%clk 0:00:30]} 30. c4 {[%clk 0:00:19]}  Be3 {[%clk 0:00:29]} 31. b4 {[%clk 0:00:19]}  Rf8 {[%clk 0:00:28]} 32. c5 {[%clk 0:00:18]}  Rf1+ {[%clk 0:00:26]} 33. Kc2 {[%clk 0:00:18]}  Ra1 {[%clk 0:00:21]} 34. c6 {[%clk 0:00:15]}  Rc1+ {[%clk 0:00:16]} 35. Kb3 {[%clk 0:00:15]}  Bd4 {[%clk 0:00:12]} 36. c7 {[%clk 0:00:14]}  Rc3+ {[%clk 0:00:12]} 37. Ka4 {[%clk 0:00:14]}  Kg7 {[%clk 0:00:05]} 38. c8=Q+ {[%clk 0:00:14]}  Kh6 {[%clk 0:00:04]} 39. Qf8+ {[%clk 0:00:13]}  Kg5 {[%clk 0:00:04]} 40. Rxh7 {[%clk 0:00:10]}  Re3 {[%clk 0:00:00]} 41. Be6 {[%clk 0:00:09]} 1-0


[Site "https://www.chess.com"]